bitfinex/quotes_ETHUSD_20241022
["timestamp","ask_amount","ask_price","bid_price","bid_amount"]
[1729560097277,3.77923,2646.1,2646.0,0.06054576]
[1729560097481,3.77923,2646.1,2645.7,0.8226]
[1729560097771,3.77931,2646.0,2645.7,0.8226]
[1729560097972,4.59681,2646.0,2645.8,0.06054576]
[1729560098280,3.77943,2645.9,2645.8,0.06054576]
[1729560098601,3.77965,2645.8,2645.2,0.831]
[1729560098812,7.55931,2645.8,2645.2,4.61142]
[1729560098973,7.55931,2645.8,2645.3,0.06054576]
[1729560099169,3.77965,2645.8,2645.3,0.06054576]
[1729560099482,7.55931,2645.8,2645.3,0.06054576]
[1729560099656,3.77965,2645.8,2645.3,0.06054576]
[1729560099857,3.77972,2645.7,2645.3,0.06054576]
[1729560100295,3.77965,2645.8,2645.3,0.06054576]
[1729560100296,4.5725,2645.6,2645.3,0.06054576]
[1729560100667,3.78003,2645.5,2645.0,0.83660649]
[1729560100883,3.78003,2645.5,2645.4,0.06054576]
[1729560101082,4.5725,2645.6,2645.0,5.00344665]
[1729560101291,8.35247,2645.6,2645.0,5.00344665]
[1729560101472,4.5725,2645.6,2645.0,5.07905332]
[1729560101676,4.5725,2645.6,2645.1,3.8414341]
[1729560101868,4.5725,2645.6,2645.1,4.73348784]
[1729560102398,3.78002,2645.5,2645.1,0.95296784]
[1729560102598,3.78002,2645.5,2645.1,0.0609141]
[1729560103900,3.78002,2645.5,2645.0,3.78071]
[1729560104104,3.78028,2645.3,2644.8,0.7999]
[1729560104309,5.50560056,2645.6,2644.8,1.55989073]
[1729560104466,4.71300056,2645.6,2645.2,4.58961]
[1729560104797,4.71300056,2645.6,2645.3,0.06102385]
[1729560105160,4.71300056,2645.6,2645.3,3.84128385]
[1729560105561,4.71300056,2645.6,2645.3,0.06102385]
[1729560106394,4.71300056,2645.6,2645.2,0.8092]
[1729560106568,4.71300056,2645.6,2645.4,0.06102385]
[1729560106773,3.78,2645.5,2645.0,4.59953]
[1729560106969,3.78,2645.5,2645.0,5.437575]
[1729560107421,3.78024,2645.4,2645.0,0.8189]
[1729560107586,8.49288056,2645.6,2645.0,0.8189]
[1729560107789,3.78002,2645.5,2645.0,0.8189]
[1729560108601,8.49288056,2645.6,2645.0,4.5995]
[1729560108807,4.71300056,2645.6,2645.2,3.78035]
[1729560109008,4.71300056,2645.6,2645.3,4.158315]
[1729560109622,4.56339,2645.8,2645.3,4.158315]
[1729560110335,4.56339,2645.8,2645.3,0.378035]
[1729560110636,4.56339,2645.8,2645.2,3.78035]
[1729560110850,4.56339,2645.8,2645.2,7.5607]
[1729560110997,4.56339,2645.8,2645.3,0.06147841]
[1729560113040,3.77974,2645.7,2645.3,0.06147841]
[1729560113535,4.56337,2645.8,2645.3,0.06147841]
[1729560113744,4.56337,2645.8,2645.2,3.78032]
[1729560113944,4.56337,2645.8,2645.3,0.06147841]
[1729560115758,4.56337,2645.8,2645.3,3.84172841]
[1729560115936,4.56337,2645.8,2645.3,0.06147841]
[1729560116121,12.27177056,2646.0,2645.4,0.786]
[1729560116327,11.25862,2646.5,2645.6,3.77971]
[1729560116328,3.77906,2646.2,2645.6,3.77971]
[1729560116711,3.77906,2646.2,2645.7,0.06147841]
[1729560117833,3.77906,2646.2,2645.7,3.84117841]
[1729560118026,3.77906,2646.2,2645.8,0.7662]
[1729560118472,3.77906,2646.2,2645.9,0.06128244]
[1729560120136,4.56587,2646.3,2645.9,0.06128244]
[1729560120361,4.57631734,2646.6,2645.9,0.46070424]
[1729560120653,3.77869,2646.5,2646.0,0.06114919]
[1729560121043,3.77869,2646.5,2646.0,3.84041919]
[1729560121243,7.55735,2646.5,2646.1,0.43011234]
[1729560121456,7.55733,2646.5,2646.1,0.43011234]
[1729560121622,7.55733,2646.5,2646.2,0.06107866]
[1729560121820,3.77866,2646.5,2646.2,0.06107866]
[1729560122023,3.7788,2646.4,2646.2,0.06107866]
[1729560122452,7.55735,2646.5,2645.9,4.24008424]
[1729560122657,7.55735,2646.5,2646.3,0.06107866]
[1729560122977,0.7788,2646.6,2646.4,0.06107866]
[1729560123128,3.77835,2646.7,2646.4,0.06107866]
[1729560123328,3.77835,2646.7,2646.2,0.7881]
[1729560123562,7.55674,2646.7,2646.3,0.06107866]
[1729560123740,3.77843,2646.6,2646.2,0.7881]
[1729560124266,3.77843,2646.6,2646.3,0.06107866]
[1729560124571,3.77858,2646.5,2646.3,0.06107866]
[1729560124775,8.86111406,2646.7,2646.4,0.06107866]
[1729560124978,8.86111406,2646.7,2646.2,0.7881]
[1729560125174,3.77845,2646.6,2646.2,0.7881]
[1729560125465,3.77835,2646.7,2646.3,0.06107866]
[1729560125627,8.49108056,2646.9,2646.4,0.8062]
[1729560125827,8.49108056,2646.9,2646.4,0.86727866]
[1729560126023,3.77817,2646.8,2646.4,0.86727866]
[1729560126267,8.49108056,2646.9,2646.4,4.64590866]
[1729560126472,3.7782,2646.8,2646.4,1.70975553]
[1729560126768,8.49108056,2646.9,2646.4,0.86727866]
[1729560126972,4.71300056,2646.9,2646.4,4.64594866]
[1729560127178,4.71300056,2646.9,2646.4,4.64588866]
[1729560127356,3.77787,2647.0,2646.4,4.64588866]
[1729560127830,3.77801,2646.9,2646.4,4.64588866]
[1729560128172,3.77816,2646.8,2646.4,0.86727866]
[1729560128371,3.77838,2646.7,2646.4,0.8062]
[1729560128535,3.77816,2646.8,2646.5,0.06018532]
[1729560128734,7.55641,2646.8,2646.2,3.77898]
[1729560128974,3.77831,2646.7,2646.3,0.06018532]
[1729560129274,3.77831,2646.7,2646.2,3.77898]
[1729560129443,3.77816,2646.8,2646.4,0.06018532]
[1729560129624,4.52643256,2646.8,2646.1,0.8062]
[1729560129824,3.77816,2646.8,2646.2,3.7789]
[1729560130058,3.77816,2646.8,2646.3,0.8231]
[1729560130467,3.77816,2646.8,2646.4,0.06018532]
[1729560131586,3.77793,2647.0,2646.5,3.77855]
[1729560131743,3.77793,2647.0,2646.6,0.06015399]
[1729560132399,4.71300056,2647.4,2646.9,3.7779]
[1729560132590,4.56886734,2647.7,2647.0,4.57425]
[1729560132746,3.77689,2647.7,2647.1,0.06002865]
[1729560132931,3.77711,2647.6,2647.1,0.06002865]
[1729560133456,3.7771,2647.6,2647.1,0.06002865]
[1729560133975,4.71300056,2647.8,2647.1,0.06002865]
[1729560134182,4.71300056,2647.8,2647.2,0.7532]
[1729560134399,8.48973056,2647.8,2647.3,0.05976236]
[1729560134539,3.77695,2647.7,2647.3,0.05976236]
[1729560134899,8.48973056,2647.8,2647.3,0.05976236]
[1729560135070,8.48973056,2647.8,2647.3,0.52635739]
[1729560135252,8.48973056,2647.8,2647.4,0.7532]
[1729560135788,8.48973056,2647.8,2647.5,0.05976236]
[1729560135948,7.55356,2647.8,2647.5,0.05976236]
[1729560136159,3.77673,2647.8,2647.5,0.05976236]
[1729560136743,8.48951056,2648.0,2647.5,0.05976236]
[1729560137271,8.48949056,2648.0,2647.5,0.05976236]
[1729560137476,8.48949056,2648.0,2647.6,0.7997]
[1729560137849,8.48949056,2648.0,2647.7,0.05938653]
[1729560138250,3.77665,2647.9,2647.7,0.05938653]
[1729560139063,3.77672,2647.8,2647.7,0.05938653]
[1729560139268,3.77649,2648.0,2647.7,0.05938653]
[1729560139659,3.77649,2648.0,2647.6,0.7997]
[1729560139864,3.77649,2648.0,2647.8,0.05838422]
[1729560140085,3.77657,2647.9,2647.6,0.7997]
[1729560140402,3.77649,2648.0,2647.7,0.05831378]
[1729560141365,3.77658,2647.9,2647.7,0.05831378]
[1729560142113,3.77649,2648.0,2647.7,0.05831378]
[1729560142403,3.77659,2647.9,2647.7,0.05831378]
[1729560143723,3.77672,2647.8,2647.7,0.05831378]
[1729560144021,3.77672,2647.8,2647.3,0.7797]
[1729560144226,3.77658,2647.9,2647.7,0.05831378]
[1729560144401,3.77634,2648.1,2647.7,0.7797]
[1729560144598,3.77634,2648.1,2647.8,0.05831378]
[1729560144930,3.77657,2647.9,2647.7,0.7797]
[1729560145918,3.77635,2648.1,2647.7,0.7797]
[1729560146126,7.55273,2648.1,2647.7,0.7797]
[1729560146519,3.77644,2648.0,2647.7,0.7797]
[1729560146828,3.77635,2648.1,2647.7,0.7797]
[1729560147053,7.55273,2648.1,2647.7,0.7797]
[1729560147187,3.77635,2648.1,2647.7,0.7797]
[1729560148399,3.77635,2648.1,2647.7,1.235383]
[1729560148712,3.77635,2648.1,2647.7,0.7797]
[1729560149535,3.77581,2648.5,2648.0,0.755]
[1729560149734,4.7319679,2648.8,2648.0,3.77631]
[1729560149735,3.77555,2648.7,2648.0,3.77631]
[1729560150027,8.5072579,2648.8,2648.1,4.53116]
[1729560150226,12.26369056,2648.8,2648.1,4.53116]
[1729560150428,8.48829056,2648.8,2648.1,3.77616]
[1729560150590,3.77529,2648.8,2648.2,4.53236]
[1729560150793,3.77529,2648.8,2648.3,0.786]
[1729560151096,7.55019,2649.0,2648.3,5.4032735]
[1729560151301,3.77506,2649.0,2648.3,5.4032735]
[1729560151596,3.77525,2648.9,2648.3,5.4032735]
[1729560152520,8.48795056,2649.1,2648.4,3.77576]
[1729560152704,8.48795056,2649.1,2648.5,0.7973]
[1729560152912,3.77513,2649.0,2648.5,1.72388454]
[1729560153127,3.77513,2649.0,2648.5,0.7973]
[1729560153509,3.77495,2649.1,2648.5,4.57291]
[1729560154138,3.77495,2649.1,2648.5,0.7973]
[1729560154339,3.77495,2649.1,2648.5,4.57298]
[1729560154543,7.5499,2649.1,2648.5,0.7973]
[1729560154695,7.5499,2649.1,2648.5,1.254605]
[1729560154900,3.77509,2649.0,2648.5,1.254605]
[1729560155102,3.9004553,2649.2,2648.6,0.7559]
[1729560155444,3.9004553,2649.2,2648.7,0.7559]
[1729560155614,3.9004553,2649.2,2648.7,1.2547765]
[1729560156014,3.9004553,2649.2,2648.8,0.05695239]
[1729560156015,0.1256453,2649.2,2648.8,0.05695239]
[1729560156222,3.77489,2649.1,2648.8,0.05695239]
[1729560156408,3.77489,2649.1,2648.7,0.7559]
[1729560156743,3.77503,2649.0,2648.8,0.05695239]
[1729560157237,3.77503,2649.0,2648.9,0.05695239]
[1729560157608,3.7754,2648.8,2648.5,0.8038]
[1729560157798,3.7754,2648.8,2648.6,0.05695239]
[1729560157996,3.77543,2648.7,2648.6,0.05695239]
[1729560158231,3.7754,2648.8,2648.6,0.05695239]
[1729560159465,7.55083,2648.8,2648.6,0.05695239]
[1729560159772,3.77543,2648.7,2648.6,0.05695239]
[1729560159949,3.7754,2648.8,2648.6,0.05695239]
[1729560160136,3.77509,2649.0,2648.6,0.05695239]
[1729560161165,3.77509,2649.0,2648.6,0.52061163]
[1729560161336,7.6752753,2649.2,2648.6,0.52061163]
[1729560161537,3.9004353,2649.2,2648.7,0.7563]
[1729560161772,3.9004353,2649.2,2648.8,0.0563657]
[1729560161968,7.6752653,2649.2,2648.7,0.7563]
[1729560162272,3.9004353,2649.2,2648.7,0.7563]
[1729560162468,7.6752953,2649.2,2648.8,0.0563657]
[1729560162767,3.9004353,2649.2,2648.8,0.0563657]
[1729560162971,3.9004353,2649.2,2648.9,0.0563657]
[1729560163140,3.7749,2649.1,2648.7,0.7563]
[1729560163465,3.7749,2649.1,2648.8,0.0563657]
[1729560163773,3.9004353,2649.2,2648.7,0.7563]
[1729560163970,3.77489,2649.1,2648.8,0.0563657]
[1729560164270,3.9004353,2649.2,2648.7,0.7563]
[1729560164431,7.6752453,2649.2,2648.9,0.0563657]
[1729560164628,7.6752453,2649.2,2648.7,0.7563]
[1729560164986,3.77486,2649.1,2648.7,0.7563]
[1729560165164,3.77486,2649.1,2648.8,0.0563657]
[1729560165466,3.77486,2649.1,2648.7,0.7563]
[1729560165675,3.77486,2649.1,2648.9,0.0563657]
[1729560165830,3.77486,2649.1,2648.7,1.209491]
[1729560166030,3.77486,2649.1,2649.0,0.0563657]
[1729560166279,3.77486,2649.1,2648.7,1.209491]
[1729560166459,3.77486,2649.1,2649.0,0.0563657]
[1729560166666,3.9004353,2649.2,2648.7,1.209491]
[1729560166863,3.9004353,2649.2,2649.0,0.0563657]
[1729560167065,3.9004353,2649.2,2648.7,1.209491]
[1729560167265,3.9004353,2649.2,2649.1,0.0563657]
[1729560167474,3.9004353,2649.2,2648.7,1.209491]
[1729560167855,7.6752453,2649.2,2648.8,0.0563657]
[1729560168178,3.9004353,2649.2,2648.7,1.209491]
[1729560168385,3.9004353,2649.2,2648.8,0.0563657]
[1729560168543,3.9004353,2649.2,2648.7,1.209491]
[1729560168874,3.9004353,2649.2,2648.8,0.0563657]
[1729560168875,0.768,2649.1,2648.8,0.0563657]
[1729560169078,3.77514,2649.0,2648.8,0.0563657]
[1729560169239,3.77514,2649.0,2648.4,0.7684]
[1729560169446,3.77514,2649.0,2648.4,4.54425]
[1729560169685,3.77514,2649.0,2648.5,0.88834261]
[1729560170038,3.77518,2648.9,2648.5,0.88834261]
[1729560170245,3.77532,2648.8,2648.5,0.05632661]
[1729560170779,3.77546,2648.7,2648.2,0.8231]
[1729560170979,3.77546,2648.7,2648.3,0.05637352]
[1729560171141,7.55101,2648.7,2648.2,0.8231]
[1729560171351,7.55099,2648.7,2648.3,0.05637352]
[1729560171551,7.55099,2648.7,2648.3,0.38794735]
[1729560171781,3.77546,2648.7,2648.4,0.05637352]
[1729560172188,7.55099,2648.7,2648.4,0.05637352]
[1729560172383,3.77546,2648.7,2648.4,0.05637352]
[1729560172586,3.77572,2648.5,2648.4,0.05637352]
[1729560172777,3.77572,2648.5,2648.0,0.7823]
[1729560173091,3.77572,2648.5,2647.7,3.77677]
[1729560173092,3.77617,2648.2,2648.1,0.05656122]
[1729560173584,0.7864,2648.3,2648.1,0.05666289]
[1729560173831,4.56242,2648.3,2647.7,0.7823]
[1729560173955,4.56242,2648.3,2648.2,0.05666289]
[1729560174154,4.56242,2648.3,2647.7,0.7823]
[1729560174393,4.56242,2648.3,2647.8,0.51447662]
[1729560174589,3.77622,2648.2,2647.8,0.05666289]
[1729560174793,3.77637,2648.1,2647.7,0.7823]
[1729560174998,7.55277,2648.1,2647.8,0.05679586]
[1729560175193,3.77637,2648.1,2647.7,0.7823]
[1729560175418,3.77637,2648.1,2647.8,0.05679586]
[1729560175691,3.77637,2648.1,2647.7,1.54013073]
[1729560175895,3.77637,2648.1,2647.9,0.05679586]
[1729560176058,3.77637,2648.1,2647.7,1.54013073]
[1729560176258,3.77637,2648.1,2648.0,0.05679586]
[1729560176762,3.77637,2648.1,2647.7,1.54013073]
[1729560176962,3.77637,2648.1,2647.8,0.05679586]
[1729560177160,3.77637,2648.1,2647.7,1.54013073]
[1729560177380,3.77637,2648.1,2647.8,0.51270567]
[1729560179272,3.77637,2648.1,2647.8,0.05679586]
[1729560179612,3.77673,2647.8,2647.6,0.01896734]
[1729560179776,3.77673,2647.8,2647.7,0.05679586]
[1729560179978,3.77673,2647.8,2647.3,0.7706]
[1729560180158,3.77673,2647.8,2647.4,0.05699927]
[1729560180986,0.7563,2647.9,2647.4,0.05699927]
[1729560181184,3.77681,2647.8,2647.4,0.05699927]
[1729560181804,3.77631,2648.1,2647.5,4.56222]
[1729560182100,3.77618,2648.2,2647.6,4.24638631]
[1729560182276,3.77618,2648.2,2647.6,0.52669467]
[1729560182479,3.77629,2648.1,2647.6,0.52669467]
[1729560183416,4.52887,2648.3,2647.6,4.30362467]
[1729560183903,3.77635,2648.1,2647.6,0.52669467]
[1729560184103,3.77635,2648.1,2647.7,0.50888447]
[1729560184303,3.77628,2648.2,2647.7,0.50888447]
[1729560184601,7.55251,2648.2,2647.8,0.05775029]
[1729560184905,3.77642,2648.1,2647.7,0.50888447]
[1729560185107,3.77642,2648.1,2647.9,0.05775029]
[1729560185267,3.77642,2648.1,2647.5,4.56213]
[1729560185666,3.77642,2648.1,2647.6,0.05775811]
[1729560185909,3.77623,2648.2,2647.6,0.05775811]
[1729560186205,3.77644,2648.0,2647.6,0.05775811]
[1729560186375,3.77644,2648.0,2647.6,0.51974692]
[1729560187002,3.77623,2648.2,2647.6,0.51974692]
[1729560187303,3.77643,2648.0,2647.6,0.51974692]
[1729560187668,7.5525,2648.2,2647.6,0.51974692]
[1729560188069,3.7763,2648.1,2647.6,0.51974692]
[1729560188311,3.7763,2648.1,2647.7,0.50818769]
[1729560188805,3.77623,2648.2,2647.8,0.05699333]
[1729560189007,3.77629,2648.1,2647.7,0.50818769]
[1729560189211,3.77629,2648.1,2647.8,0.05699333]
[1729560189365,3.77623,2648.2,2647.5,4.56213]
[1729560189562,3.77644,2648.0,2647.6,0.51320633]
[1729560190378,7.55296,2648.0,2647.6,0.51320633]
[1729560190714,3.77644,2648.0,2647.6,0.05699333]
[1729560191813,4.57292,2647.8,2647.6,0.05699333]
[1729560192016,3.77729,2647.4,2647.2,0.8232]
[1729560192170,3.77693,2647.7,2647.2,0.8232]
[1729560192370,3.7771,2647.6,2647.3,0.05700115]
[1729560194205,3.77716,2647.5,2647.3,0.05700115]
[1729560194422,3.77729,2647.4,2647.3,0.05700115]
[1729560195207,3.77729,2647.4,2647.0,0.8016]
[1729560195402,3.77674,2647.8,2647.2,3.77746]
[1729560195577,3.77674,2647.8,2647.3,0.05729062]
[1729560195778,3.77674,2647.8,2647.3,0.89441768]
[1729560195978,3.77689,2647.7,2647.3,0.89441768]
[1729560197338,3.77672,2647.8,2647.3,0.89441768]
[1729560197626,3.77666,2647.9,2647.3,0.89441768]
[1729560197806,3.77687,2647.7,2647.3,0.89441768]
[1729560199331,4.5251656,2647.7,2647.3,0.05729062]
[1729560199493,3.77729,2647.4,2647.3,0.05729062]
[1729560199692,3.77729,2647.4,2647.1,0.7589]
[1729560199927,3.77729,2647.4,2647.3,0.05755661]
[1729560200232,3.77729,2647.4,2647.1,0.7589]
[1729560200525,3.77729,2647.4,2647.2,0.05588995]
[1729560200845,3.77707,2647.6,2647.2,0.05588995]
[1729560201125,3.77731,2647.4,2647.2,0.05588995]
[1729560203006,3.77718,2647.5,2647.2,0.05588995]
[1729560203217,3.77707,2647.6,2647.2,0.05588995]
[1729560203218,7.5542,2647.6,2647.2,0.05588995]
[1729560203387,3.77726,2647.5,2647.2,0.05588995]
[1729560203594,3.77743,2647.3,2647.2,0.05588995]
[1729560203795,3.77743,2647.3,2646.8,4.60923]
[1729560204094,7.55445,2647.5,2646.9,4.29107695]
[1729560204502,3.77747,2647.3,2646.9,0.05216395]
[1729560204835,3.77765,2647.2,2646.9,0.05216395]
[1729560205014,4.56137,2647.3,2646.8,0.8311]
[1729560205205,4.56137,2647.3,2646.9,0.05216395]
[1729560205408,4.61033,2647.5,2646.9,0.05216395]
[1729560205616,3.77732,2647.4,2646.9,3.83014395]
[1729560206436,4.71300056,2647.6,2646.9,4.67402334]
[1729560206619,4.71300056,2647.6,2646.9,0.89611334]
[1729560206620,3.77742,2647.4,2646.9,0.89611334]
[1729560206823,7.55443,2647.5,2647.0,0.7924]
[1729560207012,3.77717,2647.5,2647.1,0.05049728]
[1729560208112,3.77729,2647.4,2647.1,0.05049728]
[1729560208799,3.77717,2647.5,2647.1,0.05049728]
[1729560209404,3.77732,2647.4,2647.1,0.05049728]
[1729560216455,3.77717,2647.5,2647.1,0.05049728]
[1729560217215,3.77708,2647.6,2647.1,0.05049728]
[1729560217421,3.77708,2647.6,2647.1,0.59697195]
[1729560217628,3.77729,2647.4,2647.1,0.05049728]
[1729560217846,3.77708,2647.6,2647.1,0.05049728]
[1729560218046,3.77729,2647.4,2647.1,0.05049728]
[1729560218557,8.7941356,2647.2,2647.1,0.05049728]
[1729560218857,3.77843,2646.6,2646.5,0.01896734]
[1729560219034,3.77843,2646.6,2646.2,0.814]
[1729560219035,3.77876,2646.4,2646.2,0.814]
[1729560219235,3.77876,2646.4,2646.3,0.03671198]
[1729560219436,7.55758,2646.4,2646.2,0.814]
[1729560219749,0.762,2646.7,2645.4,0.01]
[1729560219750,3.7786,2646.5,2645.8,3.77954]
[1729560219946,3.7786,2646.5,2645.9,1.191954]
[1729560220114,3.77882,2646.4,2645.9,1.22723201]
[1729560221153,3.77846,2646.6,2646.0,3.7792]
[1729560221453,3.77846,2646.6,2646.1,0.03594346]
[1729560222055,9.25334056,2646.7,2646.1,0.03594346]
[1729560222351,3.77851,2646.6,2646.1,0.53665221]
[1729560223055,3.77851,2646.6,2646.1,4.31575221]
[1729560223255,5.47500056,2646.7,2646.2,0.7944]
[1729560223256,4.71300056,2646.7,2646.2,0.7944]
[1729560223549,4.71300056,2646.7,2646.5,4.57294]
[1729560223742,3.77771,2647.1,2646.6,0.835165]
[1729560224057,3.77752,2647.3,2646.7,3.77826]
[1729560224225,0.8286,2647.5,2646.8,0.86996011]
[1729560224226,8.49015056,2647.5,2646.8,0.86996011]
[1729560224426,8.49015056,2647.5,2646.9,3.81384563]
[1729560224639,3.77715,2647.5,2647.0,3.77785]
[1729560224951,3.77715,2647.5,2647.1,0.03577902]
[1729560225728,0.84756734,2647.7,2646.9,3.77798]
[1729560225933,3.777,2647.6,2647.2,0.03577902]
[1729560226133,3.777,2647.6,2646.9,3.77798]
[1729560226627,3.777,2647.6,2647.0,0.03577902]
[1729560227230,3.77741,2647.4,2647.0,0.03577902]
[1729560227431,3.77741,2647.4,2646.8,4.57252]
[1729560227660,3.77738,2647.4,2646.9,0.87085002]
[1729560227961,3.77738,2647.4,2646.9,4.64884002]
[1729560228118,3.77738,2647.4,2646.9,3.81376902]
[1729560228315,3.77738,2647.4,2646.9,0.03577902]
[1729560228316,3.77755,2647.3,2646.9,0.03577902]
[1729560228854,3.77773,2647.1,2646.9,0.03577902]
[1729560229019,3.77786,2647.0,2646.9,0.03577902]
[1729560229751,3.77786,2647.0,2646.6,0.8122]
[1729560229965,3.77804,2646.9,2646.3,0.8122]
[1729560230366,3.7784,2646.7,2646.3,0.8122]
[1729560230903,3.77852,2646.6,2646.4,0.03569286]
[1729560231264,3.77857,2646.5,2646.4,0.03569286]
[1729560231492,3.77852,2646.6,2646.1,0.8122]
[1729560231766,3.77858,2646.5,2646.1,0.8122]
[1729560231992,3.77852,2646.6,2646.1,0.8122]
[1729560232361,3.77858,2646.5,2646.1,0.8122]
[1729560232790,3.77852,2646.6,2646.1,0.8122]
[1729560232984,3.77858,2646.5,2646.1,0.8122]
[1729560233781,4.60328856,2646.6,2646.1,0.8122]
[1729560234207,3.77857,2646.5,2646.1,0.8122]
[1729560234908,3.77875,2646.4,2646.1,0.8122]
[1729560235219,3.77857,2646.5,2645.9,3.77934]
[1729560235422,3.77874,2646.4,2645.9,3.77934]
[1729560236535,3.77874,2646.4,2645.8,0.8122]
[1729560236691,3.77874,2646.4,2645.8,4.59176]
[1729560237191,3.77874,2646.4,2645.9,3.77942]
[1729560239310,3.77848,2646.6,2646.0,0.8122]
[1729560239629,4.71300056,2646.7,2646.0,0.8122]
[1729560239630,8.49131056,2646.7,2646.1,3.77911]
[1729560239834,8.49131056,2646.7,2646.1,7.55817]
[1729560240205,8.49131056,2646.7,2646.1,3.77906]
[1729560240808,8.49131056,2646.7,2646.1,7.55813]
[1729560241201,8.49131056,2646.7,2646.1,8.47906517]
[1729560241540,4.71300056,2646.7,2646.4,0.758]
[1729560242802,3.77825,2646.8,2646.4,0.758]
[1729560244143,3.77824,2646.8,2646.4,0.758]
[1729560244347,3.7783,2646.7,2646.4,0.758]
[1729560244838,4.6071,2646.7,2646.1,4.59432]
[1729560245182,3.77802,2646.9,2646.3,3.77874]
[1729560245344,7.55615,2646.9,2646.3,3.77874]
[1729560247155,3.7779,2647.0,2646.4,0.8152]
[1729560247457,3.7779,2647.0,2646.5,3.77855]
[1729560248117,3.7779,2647.0,2646.4,0.8152]
[1729560248320,8.49078056,2647.1,2646.5,4.59365]
[1729560248522,8.49078056,2647.1,2646.6,3.77841]
[1729560248850,3.77778,2647.1,2646.6,3.77841]
[1729560249059,3.77746,2647.3,2646.7,3.77827]
[1729560249259,3.77746,2647.3,2646.8,0.8152]
[1729560249260,3.77758,2647.2,2646.8,0.8152]
[1729560249443,3.77746,2647.3,2646.8,0.8152]
[1729560250257,3.7776,2647.2,2646.8,0.8152]
[1729560250753,3.77746,2647.3,2646.8,0.8152]
[1729560251639,3.77761,2647.2,2646.8,0.8152]
[1729560252443,3.77766,2647.2,2646.6,0.7983]
[1729560252629,0.7809,2647.3,2646.4,0.7983]
[1729560252630,3.77816,2646.8,2646.4,0.7983]
[1729560252857,7.55642,2646.8,2646.4,0.7983]
[1729560253524,3.77844,2646.6,2646.1,0.7975]
[1729560253749,3.77822,2646.8,2646.1,4.57657]
[1729560253750,7.55648,2646.8,2646.1,4.57657]
[1729560253952,3.77847,2646.6,2646.1,0.7975]
[1729560255035,3.77873,2646.4,2646.1,0.7975]
[1729560257170,7.55706,2646.6,2646.1,0.7975]
[1729560257341,3.77865,2646.5,2646.1,0.7975]
[1729560257671,3.77874,2646.4,2646.1,0.7975]
[1729560259140,3.77887,2646.3,2646.1,0.7975]
[1729560259341,4.534465,2646.4,2646.1,0.7975]
[1729560259581,8.2390306,2646.4,2646.1,0.7975]
[1729560259782,3.779,2646.2,2645.8,0.7975]
[1729560260245,8.313315,2646.4,2645.8,0.7975]
[1729560260456,0.9094015,2646.3,2645.8,0.7975]
[1729560260637,0.9094015,2646.3,2645.8,4.57706]
[1729560262338,4.534465,2646.4,2645.8,4.57706]
[1729560263349,4.534465,2646.4,2645.8,8.35655]
[1729560263553,4.534465,2646.4,2645.8,4.57699]
[1729560263951,4.534465,2646.4,2645.8,8.35648]
[1729560264684,4.534465,2646.4,2645.8,4.57699]
[1729560264978,4.534465,2646.4,2645.8,8.35648]
[1729560265736,4.534465,2646.4,2645.8,4.57699]
[1729560265941,4.534465,2646.4,2645.8,8.35646]
[1729560266384,3.77874,2646.4,2645.8,8.35646]
[1729560266582,3.77874,2646.4,2645.9,3.77942]
[1729560267165,4.71300056,2646.6,2645.9,3.85501643]
[1729560267350,4.71300056,2646.6,2646.1,3.779]
[1729560267657,4.71300056,2646.6,2646.1,7.55806]
[1729560267975,4.71300056,2646.6,2646.1,3.779]
[1729560268179,3.77866,2646.5,2646.0,0.7783]
[1729560268479,4.56826,2646.5,2646.0,0.7783]
[1729560268983,3.77866,2646.5,2646.0,0.7783]
[1729560269580,0.97186126,2646.4,2646.0,0.7783]
[1729560269782,3.77866,2646.5,2646.0,0.7783]
[1729560270084,7.55737,2646.5,2646.0,0.7783]
[1729560270290,3.77875,2646.4,2646.0,0.7783]
[1729560271698,3.77866,2646.5,2646.0,0.7783]
[1729560272292,7.55737,2646.5,2646.0,0.7783]
[1729560272501,5.20735226,2646.5,2646.0,0.7783]
[1729560272702,5.20735226,2646.5,2646.0,4.55757]
[1729560273204,8.98602226,2646.5,2646.0,0.7783]
[1729560273861,5.20735226,2646.5,2646.0,0.7783]
[1729560274582,8.98602226,2646.5,2646.0,0.7783]
[1729560274755,5.20735226,2646.5,2646.0,0.7783]
[1729560274961,3.77872,2646.4,2646.0,0.7783]
[1729560275893,5.20735226,2646.5,2646.0,0.7783]
[1729560276093,3.77866,2646.5,2646.0,4.55757]
[1729560276928,3.77866,2646.5,2646.0,0.7783]
[1729560277502,3.77866,2646.5,2646.0,4.55756]
[1729560281716,4.56796,2646.7,2646.0,0.7783]
[1729560282020,7.55675,2646.7,2646.1,3.77911]
[1729560282190,8.86170506,2646.7,2646.1,3.77911]
[1729560282393,9.27081056,2646.9,2646.4,1.64718982]
[1729560282600,3.77817,2646.8,2646.2,6.18698982]
[1729560282857,3.77859,2646.5,2646.2,0.7609]
[1729560283063,3.77859,2646.5,2646.0,3.77921]
[1729560283064,3.77859,2646.5,2646.0,0.7609]
[1729560283417,3.77859,2646.5,2646.0,4.54007]
[1729560283643,0.7977,2646.6,2646.1,3.77914]
[1729560283954,4.57625,2646.6,2646.1,3.77914]
[1729560284114,4.57625,2646.6,2646.0,2.40808982]
[1729560284115,3.77859,2646.5,2646.0,2.40808982]
[1729560284455,4.57619,2646.6,2646.1,3.77913]
[1729560284616,4.57488232,2646.6,2646.1,3.77913]
[1729560284953,4.57488232,2646.6,2646.1,5.42631982]
[1729560285155,3.77829,2646.7,2646.3,0.7725]
[1729560289654,3.77829,2646.7,2645.7,3.79864734]
[1729560289655,6.20110982,2646.6,2645.9,0.8209]
[1729560289962,3.77884,2646.4,2645.9,4.60025]
[1729560290142,3.77884,2646.4,2645.9,6.24743982]
[1729560290392,3.77883,2646.4,2645.9,2.46808982]
[1729560290591,3.77883,2646.4,2645.9,1.74755472]
[1729560291427,3.7789,2646.3,2645.9,0.8209]